[Event "Vienna Chess Open 2019"]
[Site "Vienna"]
[Date "2019.08.19"]
[Round "4.9"]
[White "Pieper, Thomas"]
[Black "Kindermann, Stefan"]
[Result "1-0"]
[ECO "C11"]
[WhiteElo "2234"]
[BlackElo "2234"]
[Annotator "NA"]
[PlyCount "69"]
[EventDate "2019.08.17"]
[EventType "swiss"]
[EventCountry "AUT"]
[SourceTitle "playchess.com"]
[Source "ChessBase"]
[SourceQuality "1"]
[TimeControl "40/5400+30:1800+30"]

1. e4 {[%emt 0:00:00]} e6 {[%emt 0:00:00]} 2. d4 {[%emt 0:00:00]} d5 {[%emt 0:00:00]} 3. Nc3 {[%emt 0:00:02]} Nf6 {[%emt 0:00:21]} 4. e5 {[%emt 0:00:13]} Nfd7 {[%emt 0:00:07]} 5. f4 {[%emt 0:00:17]} c5 {[%emt 0:00:26]} 6. Nf3 {[%emt 0:00:07]} Nc6 {[%emt 0:00:20]} 7. Be3 {[%emt 0:00:09]} cxd4 {[%emt 0:00:29]} 8. Nxd4 {[%emt 0:00:09]} Bc5 {[%emt 0:00:09]} 9. Qd2 {[%emt 0:00:29]} O-O {[%emt 0:00:22]} 10. O-O-O {[%emt 0:00:51]} a6 {[%emt 0:00:29]} 11. Qf2 {[%emt 0:01:21]} Qe7 {[%emt 0:01:04]} 12. Kb1 {[%emt 0:07:07]} Nxd4 {[%emt 0:00:57]} 13. Bxd4 {[%emt 0:00:06]} b5 {[%emt 0:00:22]} 14. Bd3 {[%emt 0:17:34]} Bxd4 {[%emt 0:01:25]} 15. Qxd4 {[%emt 0:00:06]} b4 {[%emt 0:00:11]} 16. Na4 {[%emt 0:06:12]} Bb7 {[%emt 0:15:50]} 17. f5 {[%emt 0:12:10]} exf5 {[%emt 0:03:03]} 18. Bxf5 {[%emt 0:01:40]} Nxe5 {[%emt 0:08:13]} 19. Rhe1 {[%emt 0:03:09]} f6 {[%emt 0:09:30]} 20. Nc5 {[%emt 0:02:57]} Bc6 {[%emt 0:03:46]} 21. Nd3 {[%emt 0:05:10]} a5 {[%emt 0:05:32]} 22. Nxe5 {[%emt 0:02:06]} fxe5 {[%emt 0:00:06]} 23. Rxe5 {[%emt 0:01:38]} Qf6 {[%emt 0:01:32]} 24. Bg4 {[%emt 0:08:33]} Rad8 {[%emt 0:06:13]} 25. Bf3 {[%emt 0:01:21]} Rd6 {[%emt 0:08:07]} 26. Rde1 {[%emt 0:05:03]} Rc8 {[%emt 0:07:53]} 27. Qc5 {[%emt 0:14:42]} Qg6 {[%emt 0:11:13]} 28. Bxd5+ {[%emt 0:04:01]} Rxd5 {[%emt 0:00:59]} 29. Rxd5 {[%emt 0:00:11]} Bb7 {[%emt 0:00:29]} 30. Rf1 {[%emt 0:04:18]} h6 {[%emt 0:08:14]} 31. Rd6 {[%emt 0:00:37]} Qxg2 {[%emt 0:00:18]} 32. Qf2 {[%emt 0:00:10]} Qe4 {[%emt 0:02:30]} 33. Rd7 {[%emt 0:00:42]} Bd5 {[%emt 0:01:08]} 34. Re1 {[%emt 0:01:30]} Qc4 {[%emt 0:00:30]} 35. b3 {[%emt 0:00:46]} 1-0

[Event "Vienna Chess Open 2019"]
[Site "Vienna"]
[Date "2019.08.19"]
[Round "4.10"]
[White "Gelbenegger, Patrick"]
[Black "Janik, Igor"]
[Result "0-1"]
[ECO "B13"]
[WhiteElo "2483"]
[BlackElo "2483"]
[Annotator "ChessBase"]
[PlyCount "70"]
[EventDate "2019.08.17"]
[EventType "swiss"]
[EventCountry "AUT"]
[SourceTitle "playchess.com"]
[Source "ChessBase"]
[SourceQuality "1"]
[TimeControl "40/5400+30:1800+30"]

1. e4 {[%emt 0:01:49]} c6 {[%emt 0:00:00]} 2. d4 {[%emt 0:00:06]} d5 {[%emt 0:00:00]} 3. exd5 {[%emt 0:00:09]} cxd5 {[%emt 0:00:00]} 4. Bd3 {[%emt 0:00:10]} Nc6 {[%emt 0:00:00]} 5. c3 {[%emt 0:00:13]} g6 {[%emt 0:00:05]} 6. Nf3 {[%emt 0:03:17]} Bf5 {[%emt 0:00:09]} 7. Bxf5 {[%emt 0:03:32]} gxf5 {[%emt 0:00:08]} 8. Bf4 {[%emt 0:00:55]} e6 {[%emt 0:00:08]} 9. Qb3 {[%emt 0:03:35]} Qd7 {[%emt 0:00:56]} 10. Nbd2 {[%emt 0:10:23]} Nge7 {[%emt 0:00:48]} 11. h3 {[%emt 0:03:18]} Ng6 {[%emt 0:00:59]} 12. Bh2 {[%emt 0:00:14]} Bh6 {[%emt 0:01:48]} 13. O-O {[%emt 0:04:31]} O-O {[%emt 0:00:20]} 14. Rfe1 {[%emt 0:03:45]} Kh8 {[%emt 0:02:35]} 15. Nf1 {[%emt 0:04:18]} Rg8 {[%emt 0:02:55]} 16. Kh1 {[%emt 0:01:18]} Rg7 {[%emt 0:13:56]} 17. Ng3 {[%emt 0:08:15]} Nf4 {[%emt 0:01:20]} 18. Qc2 {[%emt 0:08:12]} Rag8 {[%emt 0:03:38]} 19. Nh4 {[%emt 0:10:41]} f6 {[%emt 0:08:37]} 20. Rf1 {[%emt 0:04:36]} Ne7 {[%emt 0:00:44]} 21. Rae1 {[%emt 0:02:33]} b5 {[%emt 0:06:21]} 22. Nf3 {[%emt 0:03:29]} Nc8 {[%emt 0:12:20]} 23. Nd2 {[%emt 0:05:40]} Nd6 {[%emt 0:02:00]} 24. Nb3 {[%emt 0:01:52]} Ne4 {[%emt 0:03:01]} 25. Nc5 {[%emt 0:00:31]} Qc8 {[%emt 0:02:52]} 26. b4 {[%emt 0:01:44]} e5 {[%emt 0:01:39]} 27. a4 {[%emt 0:03:21]} bxa4 {[%emt 0:02:01]} 28. Ra1 {[%emt 0:01:11]} Nxc5 {[%emt 0:01:51]} 29. bxc5 {[%emt 0:01:04]} e4 {[%emt 0:04:52]} 30. Qxa4 {[%emt 0:02:08]} Nxg2 {[%emt 0:00:20]} 31. Qa6 {[%emt 0:02:35]} Nh4 {[%emt 0:00:08]} 32. Qxf6 {[%emt 0:01:27]} Bg5 {[%emt 0:00:26]} 33. Qa6 {[%emt 0:03:08]} Qe8 {[%emt 0:00:44]} 34. Qd6 {[%emt 0:00:42]} f4 {[%emt 0:00:40]} 35. Ne2 {[%emt 0:01:28]} Qh5 {[%emt 0:00:59]} 0-1

[Event "Vienna Chess Open 2019"]
[Site "Vienna"]
[Date "2019.08.19"]
[Round "4.10"]
[White "Handler, Lukas"]
[Black "Pacan-Milej, Kosma"]
[Result "1-0"]
[ECO "A58"]
[WhiteElo "2411"]
[BlackElo "2411"]
[Annotator "NA"]
[PlyCount "81"]
[EventDate "2019.08.17"]
[EventType "swiss"]
[EventCountry "AUT"]
[SourceTitle "playchess.com"]
[Source "ChessBase"]
[SourceQuality "1"]
[TimeControl "40/5400+30:1800+30"]

1. d4 {[%emt 0:00:00]} Nf6 {[%emt 0:00:00]} 2. c4 {[%emt 0:00:00]} c5 {[%emt 0:00:00]} 3. d5 {[%emt 0:00:00]} b5 {[%emt 0:00:00]} 4. cxb5 {[%emt 0:00:33]} a6 {[%emt 0:00:00]} 5. bxa6 {[%emt 0:00:40]} g6 {[%emt 0:00:00]} 6. Nc3 {[%emt 0:00:18]} Bg7 {[%emt 0:00:04]} 7. e4 {[%emt 0:00:20]} O-O {[%emt 0:00:23]} 8. a7 {[%emt 0:00:12]} Rxa7 {[%emt 0:00:06]} 9. Nf3 {[%emt 0:00:10]} e6 {[%emt 0:01:02]} 10. Be2 {[%emt 0:00:11]} exd5 {[%emt 0:00:08]} 11. exd5 {[%emt 0:00:08]} d6 {[%emt 0:00:13]} 12. O-O {[%emt 0:00:09]} Re8 {[%emt 0:00:43]} 13. Bb5 {[%emt 0:03:22]} Bd7 {[%emt 0:08:04]} 14. Bc4 {[%emt 0:00:24]} Qb6 {[%emt 0:16:12]} 15. a4 {[%emt 0:27:01]} Ne4 {[%emt 0:10:23]} 16. Nb5 {[%emt 0:02:32]} Ra8 {[%emt 0:01:05]} 17. Ra3 {[%emt 0:13:04]} Na6 {[%emt 0:02:02]} 18. Re3 {[%emt 0:03:32]} Nb4 {[%emt 0:15:39]} 19. Rfe1 {[%emt 0:06:13]} Nf6 {[%emt 0:03:03]} 20. Rxe8+ {[%emt 0:01:43]} Bxe8 {[%emt 0:01:01]} 21. Nc3 {[%emt 0:01:30]} Bd7 {[%emt 0:03:32]} 22. h3 {[%emt 0:05:12]} h6 {[%emt 0:03:07]} 23. b3 {[%emt 0:07:45]} Bf5 {[%emt 0:06:38]} 24. Re2 {[%emt 0:01:09]} g5 {[%emt 0:04:02]} 25. h4 {[%emt 0:03:15]} g4 {[%emt 0:02:26]} 26. Nh2 {[%emt 0:00:52]} Nd7 {[%emt 0:02:48]} 27. Ne4 {[%emt 0:01:12]} Ne5 {[%emt 0:03:10]} 28. Ng3 {[%emt 0:00:56]} Bg6 {[%emt 0:01:13]} 29. h5 {[%emt 0:02:02]} Bh7 {[%emt 0:00:19]} 30. Rxe5 {[%emt 0:04:39]} dxe5 {[%emt 0:00:20]} 31. Nxg4 {[%emt 0:01:14]} Kh8 {[%emt 0:05:18]} 32. Qf3 {[%emt 0:03:24]} f5 {[%emt 0:02:59]} 33. Nxf5 {[%emt 0:01:26]} Rf8 {[%emt 0:00:10]} 34. Nge3 {[%emt 0:00:35]} Qf6 {[%emt 0:00:52]} 35. Nxg7 {[%emt 0:04:31]} Qxf3 {[%emt 0:00:16]} 36. gxf3 {[%emt 0:00:04]} Kxg7 {[%emt 0:00:04]} 37. Ng4 {[%emt 0:00:33]} Rxf3 {[%emt 0:01:50]} 38. Bxh6+ {[%emt 0:00:21]} Kh8 {[%emt 0:00:04]} 39. Nxe5 {[%emt 0:00:25]} Rf5 {[%emt 0:00:48]} 40. f4 {[%emt 0:02:44]} Rxh5 {[%emt 0:01:54]} 41. Bg5 {[%emt 0:31:50]} 1-0

[Event "Vienna Chess Open 2019"]
[Site "Vienna"]
[Date "2019.08.19"]
[Round "4.10"]
[White "Dobrovoljc, Vid"]
[Black "Mesaros, Florian"]
[Result "1-0"]
[ECO "B96"]
[WhiteElo "2331"]
[BlackElo "2420"]
[Annotator "NA"]
[PlyCount "57"]
[EventDate "2019.08.17"]
[EventType "swiss"]
[EventCountry "AUT"]
[SourceTitle "playchess.com"]
[Source "ChessBase"]
[SourceQuality "1"]
[TimeControl "40/5400+30:1800+30"]

1. e4 {[%emt 0:01:36]} c5 {[%emt 0:00:00]} 2. Nf3 {[%emt 0:01:04]} d6 {[%emt 0:00:00]} 3. d4 {[%emt 0:00:33]} cxd4 {[%emt 0:00:00]} 4. Nxd4 {[%emt 0:00:08]} Nf6 {[%emt 0:00:00]} 5. Nc3 {[%emt 0:00:06]} a6 {[%emt 0:00:00]} 6. Bg5 {[%emt 0:01:52]} e6 {[%emt 0:00:37]} 7. f4 {[%emt 0:01:22]} h6 {[%emt 0:00:12]} 8. Bh4 {[%emt 0:00:17]} Qb6 {[%emt 0:00:14]} 9. Qd2 {[%emt 0:02:12]} Qxb2 {[%emt 0:00:29]} 10. Rb1 {[%emt 0:00:06]} Qa3 {[%emt 0:00:06]} 11. e5 {[%emt 0:00:22]} dxe5 {[%emt 0:04:00]} 12. fxe5 {[%emt 0:00:08]} g5 {[%emt 0:09:25]} 13. Bf2 {[%emt 0:01:04]} Ng4 {[%emt 0:02:04]} 14. Bg3 {[%emt 0:00:53]} Nd7 {[%emt 0:06:49]} 15. Be2 {[%emt 0:08:01]} h5 {[%emt 0:07:42]} 16. Bxg4 {[%emt 0:17:06]} hxg4 {[%emt 0:00:19]} 17. Ne4 {[%emt 0:00:08]} Be7 {[%emt 0:12:48]} 18. Rb3 {[%emt 0:11:36]} Qa4 {[%emt 0:00:47]} 19. Nd6+ {[%emt 0:01:12]} Bxd6 {[%emt 0:05:40]} 20. exd6 {[%emt 0:00:06]} Rg8 {[%emt 0:01:58]} 21. O-O {[%emt 0:10:54]} Nc5 {[%emt 0:04:26]} 22. Qf2 {[%emt 0:07:31]} Qd7 {[%emt 0:07:01]} 23. Re3 {[%emt 0:02:38]} b6 {[%emt 0:09:21]} 24. Nc6 {[%emt 0:08:00]} Rf8 {[%emt 0:05:47]} 25. Ne5 {[%emt 0:03:18]} Qb7 {[%emt 0:02:37]} 26. Qf6 {[%emt 0:07:01]} Ra7 {[%emt 0:00:13]} 27. Qxg5 {[%emt 0:02:19]} Qd5 {[%emt 0:00:24]} 28. c4 {[%emt 0:02:21]} Qd4 {[%emt 0:01:07]} 29. Nc6 {[%emt 0:00:39]} 1-0

[Event "Vienna Chess Open 2019"]
[Site "Vienna"]
[Date "2019.08.19"]
[Round "4.11"]
[White "Dastan, Muhammed Batuhan"]
[Black "Csiki, Endre"]
[Result "1-0"]
[ECO "B56"]
[WhiteElo "2582"]
[BlackElo "2582"]
[Annotator "ChessBase"]
[PlyCount "89"]
[EventDate "2019.08.17"]
[EventType "swiss"]
[EventCountry "AUT"]
[SourceTitle "playchess.com"]
[Source "ChessBase"]
[SourceQuality "1"]
[TimeControl "40/5400+30:1800+30"]

1. e4 {[%emt 0:05:35]} c5 {[%emt 0:00:00]} 2. Nf3 {[%emt 0:00:04]} d6 {[%emt 0:00:00]} 3. d4 {[%emt 0:00:18]} cxd4 {[%emt 0:00:00]} 4. Nxd4 {[%emt 0:00:05]} Nf6 {[%emt 0:00:00]} 5. Nc3 {[%emt 0:00:06]} e5 {[%emt 0:00:00]} 6. Nb3 {[%emt 0:04:13]} Be7 {[%emt 0:01:34]} 7. Be2 {[%emt 0:04:19]} Nc6 {[%emt 0:07:28]} 8. Bg5 {[%emt 0:04:17]} a6 {[%emt 0:11:15]} 9. Qd3 {[%emt 0:06:21]} h6 {[%emt 0:11:52]} 10. Bxf6 {[%emt 0:01:19]} Bxf6 {[%emt 0:00:05]} 11. O-O-O {[%emt 0:04:56]} Be7 {[%emt 0:03:15]} 12. Nd5 {[%emt 0:03:00]} Bg5+ {[%emt 0:06:43]} 13. Kb1 {[%emt 0:01:02]} O-O {[%emt 0:02:54]} 14. g3 {[%emt 0:12:21]} Be6 {[%emt 0:05:42]} 15. h4 {[%emt 0:02:41]} Bf6 {[%emt 0:04:40]} 16. Qe3 {[%emt 0:00:52]} Bxd5 {[%emt 0:01:59]} 17. Rxd5 {[%emt 0:01:02]} Qc7 {[%emt 0:02:12]} 18. Rdd1 {[%emt 0:12:47]} Rfd8 {[%emt 0:02:21]} 19. g4 {[%emt 0:01:54]} g5 {[%emt 0:03:08]} 20. Nd2 {[%emt 0:03:07]} Nd4 {[%emt 0:02:55]} 21. c3 {[%emt 0:01:34]} Ne6 {[%emt 0:00:35]} 22. Nc4 {[%emt 0:00:44]} Qc5 {[%emt 0:12:01]} 23. hxg5 {[%emt 0:03:04]} Bxg5 {[%emt 0:02:15]} 24. Qxc5 {[%emt 0:01:02]} dxc5 {[%emt 0:00:30]} 25. Nxe5 {[%emt 0:00:12]} Rxd1+ {[%emt 0:00:51]} 26. Rxd1 {[%emt 0:02:03]} Rd8 {[%emt 0:00:09]} 27. Rxd8+ {[%emt 0:00:25]} Nxd8 {[%emt 0:00:56]} 28. Bc4 {[%emt 0:00:57]} Kg7 {[%emt 0:01:15]} 29. Bd5 {[%emt 0:02:00]} Be7 {[%emt 0:01:55]} 30. f4 {[%emt 0:02:16]} Bd6 {[%emt 0:01:26]} 31. Nd3 {[%emt 0:00:06]} f6 {[%emt 0:00:39]} 32. Kc2 {[%emt 0:01:27]} b6 {[%emt 0:00:39]} 33. Kd2 {[%emt 0:00:47]} Kf8 {[%emt 0:00:42]} 34. Ke3 {[%emt 0:01:05]} Ke7 {[%emt 0:00:07]} 35. e5 {[%emt 0:01:00]} fxe5 {[%emt 0:00:48]} 36. fxe5 {[%emt 0:00:10]} Bc7 {[%emt 0:00:06]} 37. Ke4 {[%emt 0:00:09]} Nf7 {[%emt 0:01:37]} 38. Bxf7 {[%emt 0:00:29]} Kxf7 {[%emt 0:00:05]} 39. c4 {[%emt 0:03:11]} Kg6 {[%emt 0:00:09]} 40. Nf4+ {[%emt 0:00:13]} Kf7 {[%emt 0:00:07]} 41. a4 {[%emt 0:30:34]} Bd8 {[%emt 0:30:09]} 42. Kf5 {[%emt 0:00:16]} Ke8 {[%emt 0:00:12]} 43. Ke6 {[%emt 0:00:22]} Bg5 {[%emt 0:00:19]} 44. Nd5 {[%emt 0:00:05]} Bd8 {[%emt 0:00:04]} 45. b3 {[%emt 0:00:20]} 1-0

[Event "Vienna Chess Open 2019"]
[Site "Vienna"]
[Date "2019.08.19"]
[Round "4.11"]
[White "Dappiano, Andrea"]
[Black "Barp, Alberto"]
[Result "0-1"]
[ECO "C45"]
[WhiteElo "2289"]
[BlackElo "2411"]
[Annotator "NA"]
[PlyCount "58"]
[EventDate "2019.08.17"]
[EventType "swiss"]
[EventCountry "AUT"]
[SourceTitle "playchess.com"]
[Source "ChessBase"]
[SourceQuality "1"]
[TimeControl "40/5400+30:1800+30"]

1. e4 {[%emt 0:03:33]} e5 {[%emt 0:00:00]} 2. Nf3 {[%emt 0:00:26]} Nc6 {[%emt 0:00:00]} 3. d4 {[%emt 0:00:08]} exd4 {[%emt 0:00:00]} 4. Nxd4 {[%emt 0:00:05]} Bc5 {[%emt 0:00:32]} 5. Be3 {[%emt 0:01:25]} Qf6 {[%emt 0:00:46]} 6. c3 {[%emt 0:00:09]} Nge7 {[%emt 0:00:45]} 7. Bb5 {[%emt 0:02:03]} O-O {[%emt 0:00:33]} 8. O-O {[%emt 0:00:07]} d6 {[%emt 0:05:16]} 9. f4 {[%emt 0:19:12]} a6 {[%emt 0:21:13]} 10. Ba4 {[%emt 0:06:34]} Ba7 {[%emt 0:17:02]} 11. Qd3 {[%emt 0:20:41]} Nxd4 {[%emt 0:08:56]} 12. Bxd4 {[%emt 0:05:22]} Bxd4+ {[%emt 0:00:06]} 13. cxd4 {[%emt 0:01:14]} d5 {[%emt 0:00:18]} 14. e5 {[%emt 0:02:56]} Qb6 {[%emt 0:01:48]} 15. Nc3 {[%emt 0:04:22]} Bf5 {[%emt 0:04:09]} 16. Qd2 {[%emt 0:01:51]} c5 {[%emt 0:00:25]} 17. Rad1 {[%emt 0:03:01]} c4 {[%emt 0:06:34]} 18. Bc2 {[%emt 0:02:53]} Rad8 {[%emt 0:07:53]} 19. Bxf5 {[%emt 0:02:38]} Nxf5 {[%emt 0:00:03]} 20. Qe2 {[%emt 0:02:46]} f6 {[%emt 0:04:49]} 21. exf6 {[%emt 0:01:36]} Qxf6 {[%emt 0:01:36]} 22. Qe5 {[%emt 0:01:19]} Qf7 {[%emt 0:07:10]} 23. g4 {[%emt 0:05:35]} Qg6 {[%emt 0:00:31]} 24. Rf2 {[%emt 0:04:20]} Qxg4+ {[%emt 0:04:27]} 25. Rg2 {[%emt 0:00:04]} Qf3 {[%emt 0:00:11]} 26. Rg5 {[%emt 0:02:53]} h6 {[%emt 0:01:12]} 27. Qe6+ {[%emt 0:02:33]} Kh8 {[%emt 0:00:22]} 28. Rg6 {[%emt 0:00:29]} Qxf4 {[%emt 0:01:31]} 29. Rf1 {[%emt 0:01:03]} Qxf1+ {[%emt 0:00:48]} 0-1

[Event "Vienna Chess Open 2019"]
[Site "Vienna"]
[Date "2019.08.19"]
[Round "4.12"]
[White "Diermair, Andreas"]
[Black "Tomaszewski, Roman"]
[Result "1/2-1/2"]
[ECO "D10"]
[WhiteElo "2473"]
[BlackElo "2473"]
[Annotator "ChessBase"]
[PlyCount "75"]
[EventDate "2019.08.17"]
[EventType "swiss"]
[EventCountry "AUT"]
[SourceTitle "playchess.com"]
[Source "ChessBase"]
[SourceQuality "1"]
[TimeControl "40/5400+30:1800+30"]

1. d4 {[%emt 0:00:00]} d5 {[%emt 0:00:00]} 2. c4 {[%emt 0:00:00]} c6 {[%emt 0:00:00]} 3. Nc3 {[%emt 0:00:00]} Nf6 {[%emt 0:00:00]} 4. e3 {[%emt 0:00:00]} g6 {[%emt 0:00:08]} 5. h3 {[%emt 0:00:20]} Bg7 {[%emt 0:04:32]} 6. Nf3 {[%emt 0:00:04]} O-O {[%emt 0:00:47]} 7. Bd3 {[%emt 0:01:34]} e6 {[%emt 0:09:48]} 8. O-O {[%emt 0:02:00]} Nbd7 {[%emt 0:00:42]} 9. b3 {[%emt 0:05:48]} b6 {[%emt 0:00:09]} 10. Ba3 {[%emt 0:09:01]} Re8 {[%emt 0:00:37]} 11. Rc1 {[%emt 0:01:09]} Bb7 {[%emt 0:01:32]} 12. cxd5 {[%emt 0:00:44]} exd5 {[%emt 0:00:29]} 13. Qc2 {[%emt 0:01:12]} Qb8 {[%emt 0:29:00]} 14. Rfe1 {[%emt 0:06:30]} Bf8 {[%emt 0:04:21]} 15. Bxf8 {[%emt 0:00:33]} Rxf8 {[%emt 0:00:11]} 16. b4 {[%emt 0:06:31]} a6 {[%emt 0:07:28]} 17. Qb3 {[%emt 0:09:19]} a5 {[%emt 0:11:43]} 18. bxa5 {[%emt 0:04:04]} Rxa5 {[%emt 0:00:10]} 19. a4 {[%emt 0:00:09]} Ba6 {[%emt 0:09:21]} 20. Bxa6 {[%emt 0:02:01]} Rxa6 {[%emt 0:00:02]} 21. e4 {[%emt 0:00:41]} dxe4 {[%emt 0:03:50]} 22. Nxe4 {[%emt 0:00:08]} Nxe4 {[%emt 0:04:56]} 23. Rxe4 {[%emt 0:00:03]} b5 {[%emt 0:01:08]} 24. axb5 {[%emt 0:04:16]} Qxb5 {[%emt 0:00:10]} 25. Qe3 {[%emt 0:00:59]} Nf6 {[%emt 0:02:51]} 26. Re5 {[%emt 0:00:51]} Nd5 {[%emt 0:00:22]} 27. Qh6 {[%emt 0:01:27]} f6 {[%emt 0:00:19]} 28. Re6 {[%emt 0:01:09]} Qb7 {[%emt 0:02:26]} 29. Qh4 {[%emt 0:06:08]} Qd7 {[%emt 0:01:49]} 30. Rce1 {[%emt 0:03:48]} Raa8 {[%emt 0:00:35]} 31. Qg4 {[%emt 0:01:58]} Rad8 {[%emt 0:00:18]} 32. Qe4 {[%emt 0:01:15]} Kf7 {[%emt 0:00:48]} 33. Qg4 {[%emt 0:05:59]} Kg8 {[%emt 0:01:17]} 34. Qg3 {[%emt 0:03:56]} Rfe8 {[%emt 0:00:42]} 35. Rxe8+ {[%emt 0:00:14]} Rxe8 {[%emt 0:00:02]} 36. Rxe8+ {[%emt 0:00:12]} Qxe8 {[%emt 0:00:06]} 37. Qd6 {[%emt 0:00:03]} Kf7 {[%emt 0:01:12]} 38. h4 {[%emt 0:01:17]} 1/2-1/2

[Event "Vienna Chess Open 2019"]
[Site "Vienna"]
[Date "2019.08.19"]
[Round "4.12"]
[White "Ruff, Maximilian"]
[Black "Mons, Leon"]
[Result "1/2-1/2"]
[ECO "E32"]
[WhiteElo "2353"]
[BlackElo "2559"]
[Annotator "ChessBase"]
[PlyCount "44"]
[EventDate "2019.08.17"]
[EventType "swiss"]
[EventCountry "AUT"]
[SourceTitle "playchess.com"]
[Source "ChessBase"]
[SourceQuality "1"]
[TimeControl "40/5400+30:1800+30"]

1. d4 {[%emt 0:03:32]} Nf6 {[%emt 0:00:00]} 2. c4 {[%emt 0:00:12]} e6 {[%emt 0:00:00]} 3. Nc3 {[%emt 0:00:40]} Bb4 {[%emt 0:00:00]} 4. Qc2 {[%emt 0:00:44]} O-O {[%emt 0:00:14]} 5. Nf3 {[%emt 0:00:07]} d5 {[%emt 0:00:19]} 6. a3 {[%emt 0:00:31]} Bxc3+ {[%emt 0:01:09]} 7. Qxc3 {[%emt 0:00:09]} dxc4 {[%emt 0:02:49]} 8. Qxc4 {[%emt 0:00:08]} b6 {[%emt 0:00:30]} 9. Bg5 {[%emt 0:00:45]} Ba6 {[%emt 0:00:10]} 10. Qa4 {[%emt 0:00:16]} Qd7 {[%emt 0:00:11]} 11. Qxd7 {[%emt 0:01:12]} Nbxd7 {[%emt 0:00:06]} 12. Bxf6 {[%emt 0:00:06]} gxf6 {[%emt 0:01:38]} 13. e3 {[%emt 0:02:28]} Bb7 {[%emt 0:03:01]} 14. Rc1 {[%emt 0:09:52]} Rfc8 {[%emt 0:02:25]} 15. Bb5 {[%emt 0:02:08]} c6 {[%emt 0:00:21]} 16. Bd3 {[%emt 0:00:16]} Kf8 {[%emt 0:05:32]} 17. Ke2 {[%emt 0:02:17]} Ke7 {[%emt 0:00:53]} 18. Rc3 {[%emt 0:12:38]} c5 {[%emt 0:02:24]} 19. Rhc1 {[%emt 0:01:52]} a6 {[%emt 0:04:09]} 20. b4 {[%emt 0:03:51]} cxb4 {[%emt 0:06:34]} 21. axb4 {[%emt 0:02:25]} f5 {[%emt 0:24:32]} 22. R1c2 {[%emt 0:05:39]} Rxc3 {[%emt 0:08:21]} 1/2-1/2

[Event "Vienna Chess Open 2019"]
[Site "Vienna"]
[Date "2019.08.20"]
[Round "5.1"]
[White "Ozen, Deniz"]
[Black "Zetthofer, Gerald"]
[Result "1-0"]
[ECO "C01"]
[WhiteElo "2429"]
[BlackElo "2273"]
[Annotator "NA"]
[PlyCount "55"]
[EventDate "2019.08.17"]
[EventType "swiss"]
[EventCountry "AUT"]
[SourceTitle "playchess.com"]
[Source "ChessBase"]
[SourceQuality "1"]
[TimeControl "40/5400+30:1800+30"]

1. e4 {[%emt 0:01:20]} e6 {[%emt 0:00:00]} 2. d4 {[%emt 0:00:43]} d5 {[%emt 0:00:00]} 3. exd5 {[%emt 0:00:45]} exd5 {[%emt 0:00:00]} 4. Nf3 {[%emt 0:00:05]} Nf6 {[%emt 0:00:49]} 5. Bd3 {[%emt 0:01:52]} Bd6 {[%emt 0:04:43]} 6. Qe2+ {[%emt 0:00:02]} Qe7 {[%emt 0:01:24]} 7. Qxe7+ {[%emt 0:00:07]} Kxe7 {[%emt 0:00:04]} 8. O-O {[%emt 0:01:36]} Be6 {[%emt 0:06:55]} 9. Re1 {[%emt 0:04:46]} Nbd7 {[%emt 0:01:57]} 10. Ng5 {[%emt 0:04:57]} Nf8 {[%emt 0:01:14]} 11. f4 {[%emt 0:03:23]} h6 {[%emt 0:04:29]} 12. Nxe6 {[%emt 0:03:56]} fxe6 {[%emt 0:01:04]} 13. g3 {[%emt 0:03:52]} c5 {[%emt 0:05:06]} 14. dxc5 {[%emt 0:01:02]} Bxc5+ {[%emt 0:00:29]} 15. Kg2 {[%emt 0:01:08]} N8d7 {[%emt 0:01:26]} 16. Bf5 {[%emt 0:03:37]} Nf8 {[%emt 0:01:15]} 17. Nd2 {[%emt 0:00:39]} Kd6 {[%emt 0:02:09]} 18. Bd3 {[%emt 0:00:29]} N8d7 {[%emt 0:01:26]} 19. Nf3 {[%emt 0:01:14]} Rhe8 {[%emt 0:02:28]} 20. Bd2 {[%emt 0:04:04]} Rac8 {[%emt 0:01:51]} 21. Re2 {[%emt 0:02:58]} a6 {[%emt 0:04:55]} 22. Rae1 {[%emt 0:01:15]} Nf8 {[%emt 0:04:56]} 23. f5 {[%emt 0:13:27]} exf5 {[%emt 0:03:53]} 24. b4 {[%emt 0:01:03]} Rxe2+ {[%emt 0:03:57]} 25. Rxe2 {[%emt 0:00:07]} Bb6 {[%emt 0:01:14]} 26. Bf4+ {[%emt 0:00:47]} Kc6 {[%emt 0:01:20]} 27. Ne5+ {[%emt 0:00:45]} Kd6 {[%emt 0:01:18]} 28. Ng6+ {[%emt 0:00:37]} 1-0

[Event "Vienna Chess Open 2019"]
[Site "Vienna"]
[Date "2019.08.20"]
[Round "5.1"]
[White "Gilevych, Artem"]
[Black "Palac, Mladen"]
[Result "1/2-1/2"]
[ECO "E12"]
[WhiteElo "2424"]
[BlackElo "2551"]
[Annotator "ChessBase"]
[PlyCount "64"]
[EventDate "2019.08.17"]
[EventType "swiss"]
[EventCountry "AUT"]
[SourceTitle "playchess.com"]
[Source "ChessBase"]
[SourceQuality "1"]
[TimeControl "40/5400+30:1800+30"]

1. d4 {[%emt 0:00:00]} Nf6 {[%emt 0:07:36]} 2. c4 {[%emt 0:00:00]} e6 {[%emt 0:00:08]} 3. Nf3 {[%emt 0:00:00]} b6 {[%emt 0:00:32]} 4. a3 {[%emt 0:00:00]} Bb7 {[%emt 0:00:03]} 5. Nc3 {[%emt 0:00:13]} d5 {[%emt 0:00:04]} 6. cxd5 {[%emt 0:00:11]} Nxd5 {[%emt 0:00:02]} 7. e3 {[%emt 0:00:18]} Be7 {[%emt 0:00:36]} 8. Bb5+ {[%emt 0:00:06]} c6 {[%emt 0:00:02]} 9. Bd3 {[%emt 0:00:05]} c5 {[%emt 0:00:02]} 10. Nxd5 {[%emt 0:00:26]} Qxd5 {[%emt 0:08:00]} 11. dxc5 {[%emt 0:00:55]} Qxc5 {[%emt 0:06:04]} 12. O-O {[%emt 0:10:29]} O-O {[%emt 0:04:40]} 13. Qe2 {[%emt 0:00:27]} Nd7 {[%emt 0:05:03]} 14. e4 {[%emt 0:01:44]} Qh5 {[%emt 0:00:49]} 15. b4 {[%emt 0:05:54]} a5 {[%emt 0:07:48]} 16. Bd2 {[%emt 0:01:12]} axb4 {[%emt 0:05:52]} 17. axb4 {[%emt 0:01:42]} Ne5 {[%emt 0:04:31]} 18. Nxe5 {[%emt 0:15:12]} Qxe5 {[%emt 0:00:04]} 19. Rxa8 {[%emt 0:01:33]} Rxa8 {[%emt 0:00:05]} 20. Be3 {[%emt 0:00:36]} b5 {[%emt 0:07:14]} 21. f3 {[%emt 0:05:48]} Bxb4 {[%emt 0:17:34]} 22. Bxb5 {[%emt 0:01:11]} Bd6 {[%emt 0:04:10]} 23. g3 {[%emt 0:01:09]} Bc5 {[%emt 0:00:01]} 24. Bxc5 {[%emt 0:05:17]} Qxc5+ {[%emt 0:00:01]} 25. Kg2 {[%emt 0:01:10]} h5 {[%emt 0:03:16]} 26. Rd1 {[%emt 0:05:57]} Rb8 {[%emt 0:00:18]} 27. Bd3 {[%emt 0:01:56]} Rd8 {[%emt 0:01:12]} 28. Qc2 {[%emt 0:03:56]} Qe3 {[%emt 0:00:44]} 29. Qe2 {[%emt 0:00:25]} Qc5 {[%emt 0:00:29]} 30. Qc2 {[%emt 0:00:07]} Qa3 {[%emt 0:01:04]} 31. Be2 {[%emt 0:04:52]} Rc8 {[%emt 0:00:48]} 32. Qd3 {[%emt 0:00:19]} Qxd3 {[%emt 0:05:10]} 1/2-1/2